fUST/lending_fUST_20260213
["ID","MTS","AMOUNT","RATE_DAILY","PERIOD"]
[405314552,1770982246470,-4725.51733001,0.00027982,2]
[405314553,1770982246481,-226.203483,0.00027982,7]
[405314554,1770982246490,-226.203483,0.00027982,7]
[405314555,1770982246500,-226.203483,0.00027982,7]
[405314556,1770982246509,-226.203483,0.00027982,7]
[405314557,1770982246518,-1381.42308788,0.00028224,3]
[405314558,1770982246527,-540.65336943,0.00028765,5]
[405314559,1770982246536,-609.48,0.00028765,2]
[405314560,1770982246546,-248.53558068,0.00028828,2]
[405314561,1770982246556,-162.15459057,0.00028857,2]
[405314562,1770982246565,-9963.64627444,0.00029,2]
[405314563,1770982320046,-534.51279844,0.00024703,2]
[405314564,1770982320085,-39.93910853,0.00024953,2]
[405314565,1770982349261,-133.79782023,0.00024953,2]
[405314566,1770982349288,-45.07791071,0.00026473,2]
[405314567,1770982349322,-176.76133656,0.00026473,2]
[405314568,1770982378649,-178.87573094,0.0002798,2]
[405314570,1770982679443,162.98,0.00013986,8]
[405314571,1770982793183,1470.12204079,0.0003013,120]
[405314572,1770982885503,158.35092834,0.00013699,2]
[405314576,1770982973771,4463.75,0.00030137,120]
[405314619,1770983141131,-742.15354524,0.00025292,2]
[405314620,1770983141296,-16.72718199,0.00025407,3]
[405314623,1770983225084,-649.12868689,0.00024953,2]
[405314626,1770983248082,-5.88263628,0.00024953,2]
[405314627,1770983248103,-150.0,0.00025079,2]
[405314628,1770983248125,-677.46337061,0.0002589,2]
[405314629,1770983347121,-697.83139229,0.00025407,3]
[405314630,1770983347141,-159.53662939,0.0002589,2]
[405314631,1770983347165,-1316.27951243,0.00026585,3]
[405314632,1770983347185,-203.73445426,0.00026746,2]
[405314633,1770983347206,-177.0,0.00027079,2]
[405314634,1770983347224,-525.0,0.000277,3]
[405314635,1770983347244,-156.20497953,0.00027726,2]
[405314636,1770983347264,-2342.68853435,0.00027759,2]
[405314637,1770983347286,-201.0,0.0002776,2]
[405314638,1770983347306,-196.34163618,0.00027845,2]
[405314639,1770983347324,-300.0,0.00027858,2]
[405314640,1770983347344,-500.0,0.00027858,2]
[405314641,1770983347364,-500.0,0.00027858,2]
[405314642,1770983347384,-500.0,0.00027858,2]
[405314643,1770983347410,-500.0,0.00027858,2]
[405314644,1770983347434,-456.92933944,0.00027858,2]
[405314645,1770983347454,-518.07665771,0.00027858,2]
[405314646,1770983347474,-500.0,0.00027858,2]
[405314647,1770983347494,-500.0,0.00027858,2]
[405314648,1770983347515,-500.0,0.00027858,2]
[405314649,1770983347535,-500.0,0.00027858,2]
[405314650,1770983347556,-500.0,0.00027858,2]
[405314651,1770983347578,-500.0,0.00027858,2]
[405314652,1770983347602,-500.0,0.00027858,2]
[405314653,1770983347622,-500.0,0.00027858,2]
[405314654,1770983347643,-500.0,0.00027858,2]
[405314655,1770983347664,-500.0,0.00027858,2]
[405314656,1770983347684,-500.0,0.00027858,2]
[405314657,1770983347704,-500.0,0.00027858,2]
[405314658,1770983347724,-500.0,0.00027858,2]
[405314659,1770983347744,-500.0,0.00027858,2]
[405314660,1770983347764,-500.0,0.00027858,2]
[405314661,1770983347784,-242.05616616,0.00027858,2]
[405314662,1770983347804,-527.37672544,0.00027858,2]
[405314663,1770983347825,-500.0,0.00027858,2]
[405314664,1770983347845,-500.0,0.00027858,2]
[405314665,1770983347865,-500.0,0.00027858,2]
[405314666,1770983347886,-500.0,0.00027858,2]
[405314667,1770983348056,-500.0,0.00027858,2]
[405314668,1770983348078,-500.0,0.00027858,2]
[405314669,1770983348100,-153.35670375,0.00027858,2]
[405314670,1770983348121,-500.0,0.00027858,2]
[405314671,1770983348142,-500.0,0.00027858,2]
[405314672,1770983348166,-500.0,0.00027858,2]
[405314673,1770983348186,-500.0,0.00027858,2]
[405314674,1770983348207,-500.0,0.00027858,2]
[405314675,1770983348228,-500.0,0.00027858,2]
[405314676,1770983348249,-500.0,0.00027858,2]
[405314677,1770983348270,-500.0,0.00027858,2]
[405314678,1770983348292,-500.0,0.00027858,2]
[405314679,1770983348312,-500.0,0.00027858,2]
[405314680,1770983348332,-500.0,0.00027858,2]
[405314681,1770983348352,-500.0,0.00027858,2]
[405314682,1770983348383,-500.0,0.00027858,2]
[405314683,1770983348404,-500.0,0.00027858,2]
[405314684,1770983348425,-500.0,0.00027858,2]
[405314685,1770983348446,-500.0,0.00027858,2]
[405314686,1770983348469,-500.0,0.00027858,2]
[405314687,1770983348492,-500.0,0.00027858,2]
[405314688,1770983348513,-500.0,0.00027858,2]
[405314689,1770983348534,-500.0,0.00027858,2]
[405314690,1770983348556,-500.0,0.00027858,2]
[405314691,1770983348577,-500.0,0.00027858,2]
[405314692,1770983348599,-500.0,0.00027858,2]
[405314693,1770983348620,-500.0,0.00027858,2]
[405314694,1770983348640,-500.0,0.00027858,2]
[405314695,1770983348661,-500.0,0.00027858,2]
[405314696,1770983348687,-500.0,0.00027858,2]
[405314697,1770983348707,-500.0,0.00027858,2]
[405314698,1770983348728,-500.0,0.00027858,2]
[405314699,1770983348748,-516.29533789,0.00027858,2]
[405314700,1770983348769,-500.0,0.00027858,2]
[405314701,1770983348790,-500.0,0.00027858,2]
[405314702,1770983348811,-500.0,0.00027858,2]
[405314703,1770983348832,-500.0,0.00027858,2]
[405314704,1770983348852,-500.0,0.00027858,2]
[405314705,1770983348872,-600.59719223,0.00027858,2]
[405314706,1770983348892,-24646.12111737,0.00027858,2]
[405314707,1770983348911,-183.693549,0.00027859,7]
[405314708,1770983348932,-151.0,0.00027859,7]
[405314709,1770983348951,-151.0,0.0002786,7]
[405314710,1770983348971,-225.071064,0.00027862,7]
[405314711,1770983348991,-225.071064,0.00027862,7]
[405314712,1770983349011,-225.071064,0.00027862,7]
[405314713,1770983349036,-225.071064,0.00027862,7]
[405314714,1770983349057,-151.0,0.00027862,7]
[405314715,1770983349077,-225.071064,0.00027863,7]
[405314716,1770983349097,-225.071064,0.00027863,7]
[405314717,1770983349118,-225.071064,0.00027863,7]
[405314718,1770983349153,-225.071064,0.00027863,7]
[405314719,1770983349179,-1194.0561829,0.00027864,2]
[405314720,1770983349200,-13220.4284367,0.00027864,2]
[405314721,1770983349221,-225.071064,0.00027864,7]
[405314722,1770983349243,-225.071064,0.00027864,7]
[405314723,1770983349265,-225.071064,0.00027864,7]
[405314724,1770983349287,-225.071064,0.00027864,7]
[405314725,1770983349309,-185.74848,0.00027864,7]
[405314726,1770983349330,-151.0,0.00027864,7]
[405314727,1770983349350,-151.0,0.00027864,7]
[405314728,1770983349372,-1934.72763256,0.00027979,3]
[405314729,1770983349392,-1103.0,0.00028,2]
[405314730,1770983349412,-13854.04711142,0.000284,2]
[405314731,1770983349432,-1881.35,0.00028777,10]
[405314732,1770983349453,-2257.62,0.00028787,10]
[405314733,1770983349473,-250.0,0.00028797,2]
[405314734,1770983349501,-201.93286099,0.00028797,2]
[405314735,1770983349527,-209.40437684,0.00028797,2]
[405314736,1770983349552,-217.15233878,0.00028797,2]
[405314737,1770983349578,-225.18697532,0.00028797,2]
[405314738,1770983349606,-233.51889341,0.00028797,2]
[405314739,1770983349631,-242.15909246,0.00028797,2]
[405314740,1770983349658,-251.11897888,0.00028797,2]
[405314741,1770983349683,-260.4103811,0.00028797,2]
[405314742,1770983349706,-270.0455652,0.00028797,2]
[405314743,1770983349734,-280.03725112,0.00028797,2]
[405314744,1770983349757,-322.98578583,0.00028797,2]
[405314745,1770983349776,-151.0,0.00029,7]
[405314746,1770983349796,-151.0,0.00029,7]
[405314747,1770983349816,-151.0,0.00029,7]
[405314748,1770983349836,-151.0,0.00029,7]
[405314749,1770983349857,-225.071064,0.00029,7]
[405314750,1770983349877,-225.071064,0.00029,7]
[405314751,1770983349897,-225.071064,0.00029,7]
[405314752,1770983349920,-225.071064,0.00029,7]
[405314753,1770983349941,-151.0,0.00029,7]
[405314754,1770983349962,-151.0,0.00029,7]
[405314755,1770983349983,-204.0,0.00029079,2]
[405314756,1770983350006,-2553.1757527,0.00029373,3]
[405314757,1770983350026,-413.1307434,0.00029535,2]
[405314758,1770983350046,-394.156698,0.00029672,2]
[405314759,1770983350071,-2342.68853432,0.00029858,2]
[405314760,1770983350096,-151.0,0.00029858,7]
[405314761,1770983350117,-151.0,0.00029858,7]
[405314762,1770983350140,-208.17575459,0.00029866,3]
[405314763,1770983350166,-2709.15,0.0002999,10]
[405314764,1770983350187,-225.071064,0.0002999,7]
[405314765,1770983350208,-225.071064,0.0002999,7]
[405314766,1770983350230,-225.071064,0.0002999,7]
[405314767,1770983350253,-225.071064,0.0002999,7]
[405314768,1770983350273,-5071.01746256,0.0003,2]
[405314769,1770983350294,-151.0,0.0003,7]
[405314770,1770983350315,-151.0,0.0003,7]
[405314771,1770983350334,-151.0,0.0003,7]
[405314772,1770983350355,-298.441787,0.0003,7]
[405314773,1770983350374,-8000.0,0.0003,2]
[405314774,1770983350393,-199.0,0.0003,14]
[405314775,1770983350412,-151.0,0.0003,7]
[405314776,1770983350431,-228.093704,0.0003,7]
[405314777,1770983350451,-380.32,0.00030036,8]
[405314778,1770983350474,-254.23997804,0.00030106,2]
[405314804,1770983438475,-151.0,0.00027858,7]
[405314806,1770983438488,-151.0,0.00027858,7]
[405314808,1770983438503,-151.0,0.00027858,7]
[405314811,1770983438517,-151.0,0.00027858,7]
[405314813,1770983438531,-151.0,0.00027864,7]
[405314816,1770983438543,-151.0,0.00027864,7]
[405314818,1770983438556,-151.0,0.000284,7]
[405314820,1770983438567,-151.0,0.000284,7]
[405314822,1770983438578,-151.0,0.00029373,7]
[405314824,1770983438589,-173.95583203,0.0003,14]
[405314827,1770983438606,-26.04416797,0.0003,14]
[405314829,1770983438617,-400.0,0.00030105,2]
[405314831,1770983438631,-3671.56762058,0.00030106,2]
[405314834,1770983438644,-3925.80759862,0.00030126,2]
[405314835,1770983438656,-151.0,0.00030126,7]
[405314838,1770983438669,-2000.0,0.00030135,2]
[405314840,1770983438683,-145.20484702,0.00030136,8]
[405315111,1770983441364,-41146.67492879,0.00030136,8]
[405315112,1770983441375,-2030.0,0.00030137,7]
[405315113,1770983441386,-471.67727161,0.00030178,2]
[405315114,1770983441396,-403.53,0.000302,7]
[405315115,1770983441407,-645.0,0.000303,2]
[405315116,1770983441418,-3171.62387284,0.00030768,3]
[405315117,1770983441428,-394.156698,0.00030921,2]
[405315118,1770983441439,-231.0,0.00031079,2]
[405315119,1770983441450,-509.68,0.00031438,2]
[405315120,1770983441460,-2949.8763143,0.00031438,2]
[405315121,1770983441471,-205.69,0.00032,30]
[405315122,1770983441482,-3000.0,0.00032,2]
[405315123,1770983441492,-3790.07199297,0.00032162,3]
[405315124,1770983441503,-394.156698,0.0003217,2]
[405315125,1770983441514,-658.2063744,0.00032236,2]
[405315126,1770983441527,-560.0,0.00032443,2]
[405315127,1770983441536,-742.81808302,0.00032589,2]
[405315128,1770983441546,-221.69393457,0.00032603,9]
[405315129,1770983441555,-2121.49384458,0.00032875,12]
[405315130,1770983441565,-2116.51,0.00032876,120]
[405315131,1770983441575,-2000.0,0.00032877,2]
[405315132,1770983441584,-511.50032229,0.00032877,120]
[405315133,1770983441594,-750.0,0.000329,30]
[405315134,1770983441603,-350.0,0.00033042,7]
[405315135,1770983441613,-350.0,0.00033042,7]
[405315136,1770983441623,-350.0,0.00033042,7]
[405315137,1770983441632,-350.0,0.00033042,7]
[405315139,1770983441776,-345.0,0.00033042,7]
[405315140,1770983441817,-258.0,0.00033079,120]
[405315141,1770983441830,-683.69,0.000331,30]
[405315142,1770983441839,-185.0,0.00033181,2]
[405315143,1770983441848,-782.0,0.000333,2]
[405315144,1770983441857,-990.9567245,0.00033306,72]
[405315145,1770983441866,-394.156698,0.00033419,2]
[405315146,1770983441875,-1115.01473111,0.00033473,76]
[405315147,1770983441884,-185.0,0.0003352,7]
[405315148,1770983441893,-4333.81001327,0.00033556,3]
[405315149,1770983441903,-742.81808302,0.00033556,3]
[405315150,1770983441912,-160.96,0.000336,7]
[405315151,1770983441921,-1115.01473111,0.00033639,80]
[405315152,1770983441930,-403.53,0.000337,7]
[405315153,1770983441939,-756.07,0.00033768,10]
[405315154,1770983441949,-1441.78,0.00033768,10]
[405315156,1770983441959,-1441.78,0.00033768,10]
[405315157,1770983441968,-961.19,0.00033768,10]
[405315159,1770983441977,-7851.61519724,0.00033778,2]
[405315160,1770983441987,-491.81,0.00033778,3]
[405315161,1770983441995,-245.91,0.00033778,3]
[405315163,1770983442004,-737.73,0.00033778,3]
[405315165,1770983442014,-39060.17857337,0.00033788,60]
[405315190,1770983446670,-2527.39973251,0.00033788,60]
[405315203,1770983769221,162.48620884,0.00021918,2]
[405315208,1770984012604,397.45558133,0.00021,2]
[405315212,1770984313428,397.45558132,0.00021,2]
[405315213,1770984346096,-982.06824876,0.00025003,2]
[405315215,1770984425093,-750.94292815,0.00024753,2]
[405315216,1770984430085,-490.87910061,0.00024753,2]
[405315223,1770984564119,-666.0773,0.00024505,2]
[405315224,1770984564141,-3758.17797124,0.00024753,2]
[405315225,1770984564164,-150.0,0.00024978,2]
[405315226,1770984564187,-725.06281183,0.00025203,3]
[405315227,1770984564207,-300.0,0.00026445,2]
[405315228,1770984564228,-502.00851752,0.00026446,2]
[405315229,1770984564248,-501.8105931,0.00026446,2]
[405315230,1770984564269,-572.99075384,0.00026446,2]
[405315231,1770984605333,7014.11471832,0.00022573,2]
[405315232,1770984608020,150.0,0.00021918,2]
[405315233,1770984608073,300.0,0.00022466,2]
[405315254,1770984631531,-271.06647348,0.00024953,2]
[405315256,1770984631541,-300.0,0.00026445,2]
[405315257,1770984631551,-300.0,0.00026445,2]
[405315258,1770984631561,-201.10574535,0.00026445,2]
[405315287,1770984637655,-393.19069763,0.00026445,2]
[405315289,1770984637667,-605.70355702,0.00026445,2]
[405315291,1770984637676,-1374.25254418,0.00026447,3]
[405315293,1770984637686,-177.0,0.00026978,2]
[405315295,1770984637696,-500.0,0.00027699,2]
[405315297,1770984637705,-500.0,0.00027699,2]
[405315299,1770984637715,-500.0,0.00027699,2]
[405315301,1770984637728,-615.33567038,0.00027699,2]
[405315303,1770984637737,-822.06460484,0.000277,2]
[405315306,1770984637759,-2533.18103996,0.000277,2]
[405315500,1770984639863,-442.58507751,0.000277,2]
[405315885,1770984644055,-470.02686994,0.000277,2]
[405315983,1770984645693,-6213.22519077,0.000277,2]
[405315984,1770984645703,-229.251077,0.000277,2]
[405315985,1770984645712,-150.2347981,0.000279,2]
[405315986,1770984645722,-2023.44227653,0.00027902,3]
[405315987,1770984645731,-337.866447,0.00027961,2]
[405315988,1770984645741,-499.57424444,0.0002851,2]
[405315989,1770984645751,-300.0,0.00028511,30]
[405315990,1770984645760,-300.0,0.00028511,30]
[405315991,1770984645770,-300.0,0.00028511,30]
[405315992,1770984645779,-300.0,0.00028511,30]
[405315993,1770984645791,-300.0,0.00028511,30]
[405315994,1770984645800,-300.0,0.00028511,30]
[405315995,1770984645810,-300.0,0.00028511,30]
[405315996,1770984645820,-300.0,0.00028511,30]
[405315997,1770984645829,-300.0,0.00028511,30]
[405315998,1770984645839,-300.0,0.00028511,30]
[405315999,1770984645848,-300.0,0.00028511,30]
[405316000,1770984645858,-300.0,0.00028511,30]
[405316001,1770984645868,-300.0,0.00028511,30]
[405316002,1770984645878,-300.0,0.00028511,30]
[405316003,1770984645888,-300.0,0.00028511,30]
[405316004,1770984645898,-420.0,0.00028606,2]
[405316005,1770984645907,-369.1637078,0.00028977,2]
[405316006,1770984645917,-204.0,0.00028978,2]
[405316007,1770984645926,-600.0,0.0002908,30]
[405316008,1770984645936,-2550.21405588,0.00029356,3]
[405316015,1770984933340,411.22103212,0.0002,2]
[405316016,1770984971672,500.0,0.00013273,2]
[405316017,1770984971865,1000.0,0.00013821,2]
[405316018,1770984971896,1504.74963795,0.00014368,2]
[405316019,1770985036220,1341.65983921,0.000235,2]
[405316021,1770985156893,5000.0,0.000235,2]
[405316022,1770985178593,5000.0,0.000235,2]
[405316023,1770985200681,975.66809402,0.000235,2]
[405316024,1770985216594,5000.0,0.000235,2]
[405316025,1770985257010,1544.32539824,0.000235,2]
[405316026,1770985386926,333.9227,0.000235,2]
[405316027,1770985437760,5000.0,0.000235,2]
[405316028,1770985461126,5000.0,0.000235,2]
[405316029,1770985478105,13051.79,0.000235,2]
[405316030,1770985486063,5000.0,0.000235,2]
[405316031,1770985512153,5000.0,0.000235,2]
[405316032,1770985530128,-157.64950829,0.00023945,2]
[405316033,1770985530151,-759.0401452,0.0002404,3]
[405316035,1770985647123,-792.76328762,0.000238,2]
[405316037,1770985664319,257.51538082,0.000209,2]
[405316038,1770985694660,278.53835039,0.00021,2]
[405316039,1770985705113,14758.17037977,0.0002,2]
[405316040,1770985710499,1394.87356279,0.0002061,2]
[405316041,1770985722074,2976.44586907,0.00021,2]
[405316042,1770985728143,5000.0,0.000235,2]
[405316043,1770985750541,5000.0,0.000235,2]
[405316044,1770985756583,257.5900613,0.00023116,2]
[405316045,1770985773295,5000.0,0.000235,2]
[405316046,1770985795711,5000.0,0.000235,2]
[405316047,1770985818153,5000.0,0.000235,2]
[405316375,1770985841018,3614.67596295,0.000235,2]
[405316675,1770985844187,-471.83585033,0.0002392,2]
[405316697,1770985845930,-325.16414967,0.0002392,2]
[405316698,1770985845939,-64.28203204,0.0002392,2]
[405316699,1770985845951,-96.75448609,0.0002392,2]
[405316700,1770985845961,-240.0,0.00023989,2]
[405316701,1770985845971,-74.55150542,0.00023989,2]
[405316702,1770985845983,-225.44849458,0.00023989,2]
[405316703,1770985845997,-541.18650542,0.00023989,2]
[405316705,1770985869405,4524.26,0.00030137,120]
[405316708,1770986024386,1251.1944916,0.00022985,2]
[405316709,1770986074493,9362.5487176,0.00022983,2]
[405316710,1770986133747,500.0,0.00013699,2]
[405316711,1770986133924,790.2,0.00014247,2]
[405316713,1770986528144,10269.5010713,0.00022983,2]
[405316718,1770986588264,742.15354524,0.000235,2]
[405316719,1770986705718,381.438529,0.00022948,2]
[405316720,1770986719189,655.01132317,0.000235,2]
[405316721,1770986739114,-208.43433454,0.00023697,2]
[405316722,1770986739136,-165.43578777,0.00023747,2]
[405316723,1770986739156,-208.01,0.000238,2]
[405316724,1770986739179,-192.78149754,0.00023887,3]
[405316725,1770986854080,-829.28773496,0.00023884,2]
[405316726,1770986986080,150.0,1.17e-06,2]
[405316727,1770986986811,150.0,7.796e-05,3]
[405316728,1770986988071,150.0,0.00017657,5]
[405316742,1770987031943,-156.20497953,0.0002371,2]
[405316744,1770987031955,-1510.88583626,0.00023883,2]
[405316746,1770987031970,-1524.82336599,0.00023883,2]
[405316763,1770987038078,-1188.92349209,0.00023883,2]
[405316764,1770987038092,-796.0,0.00023883,2]
[405316765,1770987038105,-95.88661968,0.00023928,2]
[405316775,1770987040189,-76.86045233,0.00023928,2]
[405316777,1770987040199,-300.0,0.00023973,2]
[405316778,1770987040208,-300.0,0.00023973,2]
[405316779,1770987040217,-1200.0,0.00023973,2]
[405316780,1770987040227,-241.06759466,0.00023973,10]
[405316793,1770987046269,-1964.56240534,0.00023973,10]
[405316794,1770987046278,-526.04,0.00023974,3]
[405316795,1770987046287,-263.02,0.00023974,3]
[405316796,1770987046297,-789.08,0.00023974,3]
[405316797,1770987046306,-1838.02,0.00023974,10]
[405316798,1770987046316,-622.36372948,0.00023982,2]
[405316799,1770987046326,-600.59719223,0.00023982,2]
[405316800,1770987046335,-500.0,0.00023982,2]
[405316801,1770987046345,-502.92551482,0.00023982,2]
[405316802,1770987046354,-500.0,0.00023982,2]
[405316803,1770987046365,-500.0,0.00023982,2]
[405316804,1770987046375,-500.0,0.00023982,2]
[405316805,1770987046384,-500.0,0.00023982,2]
[405316806,1770987046393,-500.0,0.00023982,2]
[405316807,1770987046406,-500.0,0.00023982,2]
[405316808,1770987046415,-500.0,0.00023982,2]
[405316809,1770987046424,-505.62043428,0.00023982,2]
[405316810,1770987046434,-307.79346763,0.00023982,2]
[405316811,1770987046444,-500.0,0.00023982,2]
[405316812,1770987046453,-500.0,0.00023982,2]
[405316813,1770987046462,-500.0,0.00023982,2]
[405316814,1770987046472,-500.0,0.00023982,2]
[405316815,1770987046481,-500.0,0.00023982,2]
[405316816,1770987046490,-500.0,0.00023982,2]
[405316817,1770987046500,-500.0,0.00023982,2]
[405316818,1770987046509,-500.0,0.00023982,2]
[405316819,1770987046518,-500.0,0.00023982,2]
[405316820,1770987046527,-500.0,0.00023982,2]
[405316821,1770987046536,-500.0,0.00023982,2]
[405316822,1770987046545,-500.0,0.00023982,2]
[405316823,1770987046554,-500.0,0.00023982,2]
[405316824,1770987046563,-548.39313621,0.00023982,2]
[405316825,1770987046572,-500.0,0.00023982,2]
[405316826,1770987046581,-500.0,0.00023982,2]
[405316827,1770987046590,-500.0,0.00023982,2]
[405316828,1770987046599,-500.0,0.00023982,2]
[405316829,1770987046609,-500.0,0.00023982,2]
[405316830,1770987046618,-500.0,0.00023982,2]
[405316831,1770987046628,-500.0,0.00023982,2]
[405316832,1770987046637,-500.0,0.00023982,2]
[405316833,1770987046647,-500.0,0.00023982,2]
[405316834,1770987046656,-500.0,0.00023982,2]
[405316835,1770987046666,-500.0,0.00023982,2]
[405316836,1770987046675,-500.0,0.00023982,2]
[405316837,1770987046684,-500.0,0.00023982,2]
[405316838,1770987046694,-500.0,0.00023982,2]
[405316839,1770987046703,-500.0,0.00023982,2]
[405316840,1770987046712,-500.0,0.00023982,2]
[405316841,1770987046721,-500.0,0.00023982,2]
[405316842,1770987046730,-500.0,0.00023982,2]
[405316843,1770987046739,-500.0,0.00023982,2]
[405316844,1770987046748,-500.0,0.00023982,2]
[405316845,1770987046758,-500.0,0.00023982,2]
[405316846,1770987046767,-500.0,0.00023982,2]
[405316847,1770987046776,-500.0,0.00023982,2]
[405316848,1770987046785,-627.91048567,0.00023982,2]
[405316849,1770987046795,-500.0,0.00023982,2]
[405316850,1770987046804,-300.0,0.00023982,2]
[405316851,1770987046813,-500.0,0.00023982,2]
[405316852,1770987046823,-500.0,0.00023982,2]
[405316853,1770987046832,-500.0,0.00023982,2]
[405316854,1770987046841,-500.0,0.00023982,2]
[405316855,1770987046850,-500.0,0.00023982,2]
[405316856,1770987046860,-500.0,0.00023982,2]
[405316857,1770987046870,-500.0,0.00023982,2]
[405316858,1770987046879,-500.0,0.00023982,2]
[405316859,1770987046889,-500.0,0.00023982,2]
[405316860,1770987046898,-500.0,0.00023982,2]
[405316861,1770987046908,-500.0,0.00023982,2]
[405316862,1770987046917,-350.0,0.00023982,2]
[405316863,1770987046927,-500.0,0.00023982,2]
[405316864,1770987046936,-500.0,0.00023982,2]
[405316865,1770987046946,-500.0,0.00023982,2]
[405316866,1770987046956,-500.0,0.00023982,2]
[405316867,1770987046966,-500.0,0.00023982,2]
[405316868,1770987046975,-500.0,0.00023982,2]
[405316869,1770987046985,-500.0,0.00023982,2]
[405316870,1770987046994,-500.0,0.00023982,2]
[405316871,1770987047004,-500.0,0.00023982,2]
[405316872,1770987047014,-500.0,0.00023982,2]
[405316873,1770987047024,-500.0,0.00023982,2]
[405316874,1770987047034,-435.24112389,0.00023982,2]
[405316875,1770987047044,-636.29211667,0.00023983,2]
[405316876,1770987047053,-50000.0,0.00023984,2]
[405316877,1770987047063,-171.961713,0.00023984,2]
[405316878,1770987047072,-171.961713,0.00023984,2]
[405316879,1770987047082,-171.961713,0.00023984,2]
[405316880,1770987047091,-171.961713,0.00023984,2]
[405316881,1770987047101,-171.961713,0.00023984,2]
[405316882,1770987047110,-171.961713,0.00023984,2]
[405316883,1770987047120,-171.961713,0.00023984,2]
[405316884,1770987047130,-171.961713,0.00023984,2]
[405316885,1770987047139,-171.961713,0.00023984,2]
[405316886,1770987047149,-171.961713,0.00023984,2]
[405316887,1770987047159,-171.961713,0.00023984,2]
[405316888,1770987047169,-171.961713,0.00023984,2]
[405316889,1770987047179,-225.071064,0.00023984,2]
[405316890,1770987047188,-225.071064,0.00023984,2]
[405316891,1770987047199,-225.071064,0.00023984,2]
[405316892,1770987047209,-225.071064,0.00023984,2]
[405316893,1770987047218,-225.071064,0.00023984,2]
[405316894,1770987047228,-225.071064,0.00023984,2]
[405316895,1770987047238,-225.071064,0.00023984,2]
[405316896,1770987047247,-225.071064,0.00023984,2]
[405316897,1770987047257,-209.243,0.00023985,5]
[405316898,1770987047266,-151.0,0.00023986,2]
[405316899,1770987047276,-171.961713,0.0002399,2]
[405316900,1770987047286,-171.961713,0.0002399,2]
[405316901,1770987047296,-171.961713,0.0002399,2]
[405316902,1770987047306,-171.961713,0.0002399,2]
[405316903,1770987047315,-225.071064,0.0002399,2]
[405316904,1770987047325,-225.071064,0.0002399,2]
[405316905,1770987047335,-225.071064,0.0002399,2]
[405316906,1770987047344,-225.071064,0.0002399,2]
[405316907,1770987047354,-54172.08304194,0.0002399,2]
[405316908,1770987047365,-6023.44725825,0.00024075,3]
[405316909,1770987047377,-500.0,0.00024106,2]
[405316910,1770987047386,-500.0,0.00024106,2]
[405316911,1770987047397,-500.0,0.00024107,2]
[405316912,1770987047407,-2136.6917513,0.00024142,2]
[405316913,1770987047417,-25358.37458696,0.00024175,3]
[405316914,1770987047427,-742.81808302,0.00024175,3]
[405316915,1770987047437,-171.961713,0.00024175,2]
[405316916,1770987047448,-171.961713,0.00024175,2]
[405316917,1770987047457,-171.961713,0.00024175,2]
[405316918,1770987047466,-171.961711,0.00024175,2]
[405316919,1770987047476,-225.071064,0.00024175,2]
[405316920,1770987047486,-225.071064,0.00024175,2]
[405316921,1770987047496,-225.071064,0.00024175,2]